bitfinex/quotes_SOLUSD_20260309
["timestamp","ask_amount","ask_price","bid_price","bid_amount"]
[1773031846145,2.92270403,83.797,83.768,14.81370445]
[1773031846346,2.92270403,83.797,83.769,2.87610803]
[1773031848652,2.92270403,83.795,83.769,2.87610803]
[1773031850336,2.92270403,83.795,83.77,11.93744777]
[1773031851039,2.92270403,83.793,83.771,2.87610803]
[1773031851556,2.92270403,83.793,83.762,2.87610803]
[1773031851857,2.92270403,83.789,83.762,2.87610803]
[1773031853051,11.93402868,83.794,83.771,2.87610803]
[1773031853945,14.85673271,83.794,83.771,2.87610803]
[1773031854739,2.92270403,83.793,83.771,2.87610803]
[1773031856143,2.92270403,83.793,83.764,2.87610803]
[1773031857643,2.92270403,83.791,83.764,2.87610803]
[1773031860157,2.92270403,83.791,83.76,4.37868195]
[1773031860158,14.85730243,83.79,83.766,2.87610803]
[1773031860948,2.92270403,83.789,83.766,2.87610803]
[1773031861647,11.9345984,83.79,83.748,2.87610803]
[1773031861648,2.92270403,83.779,83.748,2.87610803]
[1773031861847,41.7710944,83.79,83.731,2.87610803]
[1773031861848,2.92270403,83.769,83.731,2.87610803]
[1773031862049,2.92270403,83.759,83.721,2.87610803]
[1773031862661,2.92270403,83.759,83.731,2.87610803]
[1773031864071,2.94717456,83.757,83.731,2.87610803]
[1773031866768,11.93944314,83.756,83.731,2.87610803]
[1773031866951,2.94717456,83.755,83.731,2.87610803]
[1773031868069,2.94717456,83.76,83.74,7.33583083]
[1773031868265,2.94717456,83.76,83.74,2.95714888]
[1773031868869,14.88608448,83.76,83.741,2.78570251]
[1773031869174,9.53595668,83.76,83.741,2.78570251]
[1773031869467,0.42648471,83.777,83.741,2.78570251]
[1773031870466,4.37868195,83.77,83.741,2.78570251]
[1773031870674,4.37868195,83.77,83.731,2.78570251]
[1773031870861,4.37868195,83.76,83.731,2.78570251]
[1773031871367,2.94992496,83.758,83.731,2.78570251]
[1773031871760,2.94992496,83.758,83.721,2.78570251]
[1773031871956,2.94992496,83.758,83.722,2.78570251]
[1773031873471,11.93930059,83.757,83.723,11.94414915]
[1773031873655,11.93930059,83.757,83.731,2.78570251]
[1773031874071,14.88922555,83.757,83.731,2.78570251]
[1773031874271,2.94992496,83.756,83.731,2.78570251]
[1773031874470,2.94992496,83.756,83.724,2.78570251]
[1773031874779,2.94992496,83.756,83.731,2.78570251]
[1773031874981,11.93930059,83.757,83.731,2.78570251]
[1773031875655,11.93930059,83.757,83.732,2.78570251]
[1773031875956,2.94992496,83.756,83.732,2.78570251]
[1773031878658,2.94992496,83.762,83.732,2.78570251]
[1773031879362,2.94992496,83.762,83.734,2.78570251]
[1773031881668,2.94992496,83.76,83.734,2.78570251]
[1773031881862,2.94992496,83.76,83.735,11.94243745]
[1773031882061,2.94992496,83.76,83.736,2.78570251]
[1773031884580,2.94992496,83.758,83.736,2.78570251]
[1773031887261,11.93930059,83.757,83.736,2.78570251]
[1773031887879,2.94992496,83.756,83.736,2.78570251]
[1773031890363,29.84410885,83.769,83.736,2.78570251]
[1773031890364,2.94992496,83.761,83.736,2.78570251]
[1773031893573,2.82632068,83.759,83.736,2.78570251]
[1773031895779,2.82632068,83.757,83.736,2.78570251]
[1773031899194,2.82632068,83.755,83.736,2.78570251]
[1773031899887,2.82632068,83.755,83.728,2.75871096]
[1773031900672,11.93944314,83.756,83.7,4.58098231]
[1773031900673,2.82632068,83.739,83.7,4.58098231]
[1773031901680,2.82632068,83.737,83.71,4.58098231]
[1773031901881,2.82632068,83.737,83.71,0.2]
[1773031902187,2.82632068,83.729,83.71,0.2]
[1773031903579,11.94343588,83.728,83.71,0.2]
[1773031903780,14.76975656,83.728,83.71,0.2]
[1773031904180,2.82632068,83.727,83.71,0.2]
[1773031904887,11.94372118,83.726,83.71,0.2]
[1773031905901,2.82632068,83.725,83.71,0.2]
[1773031910591,2.82632068,83.723,83.71,0.2]
[1773031910986,2.82632068,83.723,83.704,2.75871096]
[1773031911179,2.82632068,83.723,83.7,0.2]
[1773031911386,2.82632068,83.719,83.7,0.2]
[1773031912795,2.82632068,83.717,83.7,0.2]
[1773031913097,2.82632068,83.717,83.685,2.75871096]
[1773031913302,2.82632068,83.709,83.685,2.75871096]
[1773031915199,2.82632068,83.707,83.685,2.75871096]
[1773031916785,2.82632068,83.705,83.685,2.75871096]
[1773031917186,2.82632068,83.705,83.678,2.75871096]
[1773031918190,2.82632068,83.689,83.67,0.2]
[1773031918799,2.82632068,83.687,83.67,0.2]
[1773031919004,2.82632068,83.691,83.67,2.95871096]
[1773031920110,2.82632068,83.709,83.672,2.75871096]
[1773031920911,2.82632068,83.699,83.672,2.75871096]
[1773031922110,2.82632068,83.707,83.681,2.75871096]
[1773031922415,11.94628948,83.708,83.681,2.75871096]
[1773031922913,2.95213481,83.709,83.683,2.96266875]
[1773031923411,2.95213481,83.709,83.671,2.96266875]
[1773031924910,2.95213481,83.707,83.673,2.96266875]
[1773031925413,2.95213481,83.699,83.673,2.96266875]
[1773031925797,2.95213481,83.689,83.67,0.2]
[1773031926413,2.95213481,83.689,83.66,3.16266875]
[1773031926414,2.95213481,83.689,83.66,0.2]
[1773031926615,2.95213481,83.679,83.66,0.2]
[1773031927709,11.95057243,83.678,83.66,0.2]
[1773031927910,2.95213481,83.677,83.66,0.2]
[1773031929222,4.38098231,83.68,83.66,0.2]
[1773031929223,2.89203162,83.675,83.66,0.2]
[1773031932427,2.89203162,83.681,83.661,2.9448938]
[1773031932817,2.89203162,83.681,83.66,0.2]
[1773031933015,2.89203162,83.681,83.66,3.1448938]
[1773031935626,2.89203162,83.679,83.66,3.1448938]
[1773031938624,11.95057243,83.678,83.66,3.1448938]
[1773031939130,2.89203162,83.691,83.661,2.9448938]
[1773031939819,2.89203162,83.689,83.661,2.9448938]
[1773031940732,2.89203162,83.687,83.661,2.9448938]
[1773031943524,2.89203162,83.685,83.661,2.9448938]
[1773031944724,2.89203162,83.685,83.66,0.2]
[1773031945643,2.89203162,83.683,83.66,0.2]
[1773031945843,2.89203162,83.679,83.66,0.2]
[1773031947238,11.95057243,83.678,83.66,0.2]
[1773031947439,2.89203162,83.677,83.66,0.2]
[1773031948741,2.89203162,83.675,83.66,0.2]
[1773031949944,2.89203162,83.673,83.66,0.2]
[1773031951454,2.89203162,83.678,83.66,3.1448938]
[1773031952752,14.84274687,83.677,83.66,3.1448938]
[1773031955050,2.91959078,83.676,83.66,0.2]
[1773031957959,2.91959078,83.674,83.66,0.2]
[1773031959144,2.91959078,83.669,83.651,2.85748021]
[1773031959953,2.91959078,83.669,83.65,0.2]
[1773031960960,2.91959078,83.659,83.625,44.65528077]
[1773031961139,41.82950293,83.673,83.6,35.61137329]
[1773031961140,2.91959078,83.629,83.6,35.61137329]
[1773031961460,0.42648471,83.624,83.601,2.85748021]
[1773031961648,2.91959078,83.625,83.601,2.85748021]
[1773031962161,2.91959078,83.63,83.601,2.85748021]
[1773031962344,7.30926997,83.63,83.601,2.85748021]
[1773031962549,2.91959078,83.629,83.601,2.85748021]
[1773031963367,71.1919974,83.651,83.574,2.85748021]
[1773031963368,2.91959078,83.609,83.574,2.85748021]
[1773031963549,4.38967919,83.61,83.581,2.85748021]
[1773031964659,11.96043488,83.609,83.581,11.96430632]
[1773031964964,11.96043488,83.609,83.582,2.85748021]
[1773031964965,2.91959078,83.608,83.582,2.85748021]
[1773031965261,11.96043488,83.609,83.582,2.85748021]
[1773031965961,2.91959078,83.608,83.572,2.85748021]
[1773031966467,2.91959078,83.608,83.581,2.85748021]
[1773031967366,2.91959078,83.606,83.581,2.85748021]
[1773031967741,7.30926997,83.6,83.571,2.85748021]
[1773031967955,2.91959078,83.598,83.571,2.85748021]
[1773031969455,2.91959078,83.596,83.571,2.85748021]
[1773031969765,2.91959078,83.596,83.57,0.2]
[1773031969938,2.91959078,83.596,83.57,4.38967919]
[1773031970344,2.91959078,83.596,83.553,11.96845116]
[1773031970568,2.91959078,83.596,83.56,4.38967919]
[1773031971447,2.91959078,83.594,83.57,4.38967919]
[1773031971848,2.91959078,83.594,83.571,2.85748021]
[1773031972146,4.38967919,83.59,83.565,2.85748021]
[1773031972350,2.91959078,83.591,83.565,2.85748021]
[1773031972548,61.19701055,83.594,83.571,2.85748021]
[1773031972751,61.19701055,83.594,83.581,2.85748021]
[1773031973856,2.91959078,83.617,83.584,2.07977351]
[1773031974054,47.77790261,83.721,83.584,2.07977351]
[1773031974055,2.91959078,83.615,83.584,2.07977351]
[1773031974254,2.91959078,83.609,83.582,14.04977228]
[1773031974558,2.91959078,83.609,83.583,2.08547375]
[1773031978050,11.96057793,83.608,83.583,2.08547375]
[1773031978369,2.91959078,83.607,83.583,2.08547375]
[1773031980669,2.91959078,83.605,83.583,2.08547375]
[1773031981864,11.96086405,83.606,83.591,2.12342798]
[1773031982768,11.96014878,83.611,83.591,2.12342798]
[1773031983071,2.93589309,83.61,83.591,2.12342798]
[1773031983764,11.96014878,83.611,83.591,2.12342798]
[1773031985169,16.26625873,83.616,83.553,2.14387915]
[1773031985170,4.38967919,83.6,83.553,2.14387915]
[1773031985347,2.93589309,83.599,83.561,2.14884614]
[1773031985553,2.93589309,83.599,83.571,2.14884614]
[1773031986664,2.93589309,83.597,83.572,2.15374477]
[1773031988071,11.961442,83.602,83.581,2.15855246]
[1773031988776,2.81905982,83.599,83.576,2.16807101]
[1773031988970,2.81905982,83.599,83.57,4.38967919]
[1773031989152,2.81905982,83.599,83.57,6.5577502]
[1773031989359,2.81905982,83.599,83.55,0.2]
[1773031989557,2.81905982,83.599,83.54,0.2]
[1773031989558,4.38967919,83.56,83.54,0.2]
[1773031989890,2.81905982,83.549,83.505,11.97533081]
[1773031990073,2.81905982,83.539,83.51,4.38967919]
[1773031990372,2.81905982,83.539,83.511,2.17270946]
[1773031990766,2.81905982,83.537,83.511,2.17270946]
[1773031991284,11.9706002,83.538,83.5,0.2]
[1773031991285,2.81905982,83.519,83.5,0.2]
[1773031991494,2.81905982,83.519,83.482,2.18086732]
[1773031991802,2.81905982,83.519,83.491,2.18086732]
[1773031992154,2.81905982,83.529,83.5,4.38967919]
[1773031992356,47.83059836,83.629,83.52,4.38967919]
[1773031992357,2.81905982,83.543,83.52,4.38967919]
[1773031992774,2.81905982,83.541,83.511,2.18432]
[1773031993355,2.81905982,83.541,83.512,14.162138]
[1773031993560,2.81905982,83.541,83.52,4.40398953]
[1773031994480,2.81905982,83.541,83.513,2.18781096]
[1773031994481,14.78937344,83.54,83.513,2.18781096]
[1773031994682,2.81905982,83.539,83.515,2.19121229]
[1773031995671,4.40398953,83.55,83.514,11.97404028]
[1773031995672,11.9696678,83.545,83.521,2.19457622]
[1773031996271,2.81905982,83.553,83.53,6.60188848]
[1773031996479,2.81905982,83.553,83.531,2.19789895]
[1773031998882,14.78765422,83.552,83.531,2.19789895]
[1773031999083,2.81905982,83.551,83.53,4.40398953]
[1773031999265,2.81905982,83.551,83.52,4.40398953]
[1773031999472,2.81905982,83.551,83.52,6.61167818]
[1773031999674,2.81905982,83.551,83.521,11.97303672]
[1773032000164,2.81905982,83.549,83.53,4.40398953]
[1773032000584,11.96828496,83.555,83.531,2.21086046]
[1773032000973,10.36396598,83.558,83.54,4.40398953]
[1773032001161,2.81905982,83.557,83.54,4.40398953]
[1773032003684,2.81905982,83.557,83.533,2.22013036]
[1773032004082,2.81905982,83.555,83.53,4.40398953]
[1773032004284,2.81905982,83.555,83.531,2.22013036]
[1773032004483,10.36396598,83.558,83.541,2.2231516]
[1773032005383,29.91084895,83.582,83.531,41.90061174]
[1773032005384,7.32682495,83.59,83.553,0.97431844]
[1773032005587,7.32682495,83.59,83.568,11.96630289]
[1773032005884,2.81905982,83.589,83.57,4.40398953]
[1773032006867,7.32682495,83.59,83.58,4.40398953]
[1773032007068,6.34854586,83.59,83.58,4.40398953]
[1773032007878,3.13299265,83.61,83.581,11.96444167]
[1773032008084,3.13299265,83.624,83.6,4.40398953]
[1773032008879,3.13299265,83.624,83.513,1.19741836]
[1773032008880,3.13299265,83.619,83.59,4.40398953]
[1773032009683,3.13299265,83.619,83.555,3.69383402]
[1773032009885,3.13299265,83.617,83.58,4.40398953]
[1773032010771,3.13299265,83.617,83.59,4.40398953]
[1773032012102,3.13299265,83.615,83.59,4.40398953]
[1773032013178,11.95971966,83.614,83.59,4.40398953]
[1773032013389,3.13299265,83.613,83.59,4.40398953]
[1773032014083,3.13299265,83.613,83.59,16.3671156]
[1773032016295,3.13299265,83.627,83.591,0.04777421]
[1773032016701,3.13299265,83.626,83.59,16.3671156]
[1773032017882,7.31005973,83.631,83.567,0.05182997]
[1773032017883,3.13299265,83.609,83.567,0.05182997]
[1773032018194,3.13299265,83.609,83.58,4.40398953]
[1773032019509,3.13299265,83.609,83.57,4.40398953]
[1773032020306,3.13299265,83.607,83.571,11.96587332]
[1773032020684,3.13299265,83.607,83.57,4.40398953]
[1773032020908,3.13299265,83.599,83.57,4.40398953]
[1773032021206,3.13299265,83.599,83.563,11.96688974]
[1773032021826,3.13299265,83.599,83.57,4.40398953]
[1773032023008,3.13299265,83.597,83.57,4.40398953]
[1773032023501,15.09433143,83.603,83.58,4.40398953]
[1773032023687,3.13299265,83.603,83.581,0.07522588]
[1773032024096,3.13299265,83.601,83.58,4.40398953]
[1773032024902,11.96143632,83.602,83.515,11.9738969]
[1773032024903,2.87829049,83.589,83.515,11.9738969]
[1773032025106,2.87829049,83.589,83.48,60.09435131]
[1773032025107,4.40398953,83.54,83.516,3.02733703]
[1773032025295,11.96855347,83.553,83.521,3.02733703]
[1773032027196,11.96855347,83.553,83.522,11.97289336]
[1773032027396,11.96855347,83.553,83.523,3.02733703]
[1773032027599,11.8024348,83.53,83.501,3.02733703]
[1773032027790,11.8024348,83.54,83.501,3.02733703]
[1773032028808,11.97045691,83.539,83.503,3.02733703]
[1773032029330,11.8024348,83.53,83.503,3.02733703]
[1773032029514,14.68072529,83.53,83.503,3.02733703]
[1773032030012,2.87829049,83.529,83.503,3.02733703]
[1773032031006,41.89659919,83.539,83.5,11.9024348]
[1773032031007,11.97203333,83.528,83.501,3.02733703]
[1773032035510,2.87829049,83.528,83.501,3.02733703]
[1773032036303,2.87829049,83.538,83.501,3.02733703]
[1773032037414,2.87829049,83.538,83.502,3.02733703]
[1773032037801,2.87829049,83.536,83.502,3.02733703]
[1773032038308,2.87829049,83.536,83.51,11.8024348]
[1773032038500,2.87829049,83.536,83.503,11.97561764]
[1773032038501,11.96902416,83.549,83.521,3.02733703]
[1773032039011,14.84731465,83.549,83.521,3.02733703]
[1773032039202,2.87829049,83.548,83.521,3.02733703]
[1773032039512,11.96902416,83.549,83.521,3.02733703]
[1773032039722,2.87829049,83.548,83.521,3.02733703]
[1773032039895,2.87829049,83.546,83.521,3.02733703]
[1773032042221,11.96959722,83.545,83.521,3.02733703]
[1773032043604,7.32230312,83.558,83.498,0.42648471]
[1773032043605,7.32230312,83.558,83.531,3.01521621]
[1773032043920,7.32230312,83.558,83.541,3.01521621]
[1773032044214,7.32230312,83.558,83.54,11.8024348]
[1773032044215,1.56744665,83.558,83.543,3.01521621]
[1773032044414,1.56744665,83.558,83.542,11.97002705]
[1773032044415,15.17176789,83.573,83.545,3.01521621]
[1773032044614,3.20610805,83.572,83.545,3.01521621]
[1773032045327,3.20610805,83.572,83.546,11.96945395]
[1773032046223,3.20610805,83.572,83.55,11.8024348]
[1773032046722,3.20610805,83.57,83.55,11.8024348]
[1773032046909,3.20610805,83.57,83.545,3.01521621]
[1773032047231,3.20610805,83.57,83.546,11.96945395]
[1773032048915,11.9661597,83.569,83.546,11.96945395]
[1773032049119,11.9661597,83.569,83.545,3.01521621]
[1773032049120,3.09100041,83.568,83.545,3.01521621]
[1773032049922,3.09100041,83.568,83.546,11.96945395]
[1773032053919,3.09100041,83.588,83.551,3.00024592]
[1773032054920,3.09100041,83.588,83.55,4.40082125]
[1773032055222,3.09100041,83.579,83.545,3.00024592]
[1773032055721,3.09100041,83.579,83.55,4.40032743]
[1773032056412,3.09100041,83.577,83.55,7.40057335]
[1773032060330,3.09100041,83.575,83.551,11.96873765]
[1773032061112,3.09100041,83.575,83.552,3.00024592]
[1773032061729,3.09100041,83.575,83.553,14.96869708]
[1773032062626,3.09100041,83.573,83.55,7.40057335]
[1773032063115,3.09100041,83.573,83.551,3.00024592]
[1773032063628,3.09100041,83.573,83.552,14.96877246]
[1773032067926,3.09100041,83.573,83.554,11.96830792]
[1773032068931,3.09100041,83.571,83.542,3.00024592]
[1773032069234,3.09100041,83.571,83.526,29.93056912]
[1773032069235,3.09100041,83.571,83.551,3.00024592]
[1773032071031,3.09100041,83.571,83.552,11.9685944]
[1773032071823,3.09100041,83.571,83.553,3.00024592]
[1773032074012,3.23955133,83.578,83.555,3.27429408]
[1773032075625,3.23955133,83.576,83.555,3.27429408]
[1773032077318,29.91047338,83.583,83.561,3.27429408]
[1773032077721,3.23955133,83.582,83.561,3.27429408]
[1773032078118,3.23955133,83.582,83.56,4.40032743]
[1773032078932,3.23955133,83.58,83.555,3.27429408]
[1773032079138,3.23955133,83.58,83.55,4.40032743]
[1773032079331,3.23955133,83.578,83.549,3.27429408]
[1773032079524,3.23955133,83.576,83.541,3.27429408]
[1773032080739,3.23955133,83.576,83.502,1.1975761]
[1773032080740,3.23955133,83.547,83.502,3.27429408]
[1773032080939,0.42648471,83.548,83.502,3.27429408]
[1773032080940,3.23955133,83.537,83.502,3.27429408]
[1773032081145,3.23955133,83.537,83.511,3.27429408]
[1773032081437,3.23955133,83.537,83.5,4.40032743]
[1773032081639,3.23955133,83.543,83.52,4.40032743]
[1773032081940,3.23955133,83.541,83.51,4.40032743]
[1773032082242,3.23955133,83.539,83.51,4.40032743]
[1773032083040,3.23955133,83.537,83.5,4.40032743]
[1773032083746,3.23955133,83.537,83.501,2.9523466]
[1773032084741,3.23955133,83.529,83.48,0.2]
[1773032084941,3.23955133,83.529,83.49,4.60032743]
[1773032085441,3.23955133,83.529,83.492,2.97203202]
[1773032085625,3.23955133,83.529,83.501,2.97203202]
[1773032086521,3.23955133,83.527,83.502,2.98165963]
[1773032089642,3.23955133,83.539,83.511,3.00993873]
[1773032089823,3.23955133,83.545,83.511,3.00993873]
[1773032090030,4.43655403,83.544,83.511,3.00993873]
[1773032090233,3.23955133,83.543,83.511,3.00993873]
[1773032090846,15.20957838,83.542,83.513,3.01917465]
[1773032091032,3.23955133,83.542,83.513,3.01917465]
[1773032091443,3.23955133,83.548,83.521,3.02826437]
[1773032094541,3.23955133,83.548,83.522,11.97289336]
[1773032094748,15.20886201,83.547,83.523,3.05500424]
[1773032095156,3.23955133,83.546,83.523,3.05500424]
[1773032095738,29.91890634,83.56,83.523,3.05500424]
[1773032095739,3.23955133,83.552,83.523,3.05500424]
[1773032095934,3.23955133,83.557,83.523,3.05500424]
[1773032096135,11.96821091,83.555,83.523,3.05500424]
[1773032096336,3.23955133,83.553,83.523,3.05500424]
[1773032096647,11.96845116,83.553,83.524,11.97260667]
[1773032096835,3.23955133,83.552,83.525,3.07231708]
[1773032099052,3.23955133,83.55,83.524,11.97260667]
[1773032100549,11.96902416,83.549,83.524,11.97260667]
[1773032100747,11.96902416,83.549,83.52,4.40032743]
[1773032100748,3.23955133,83.548,83.52,3.10585425]
[1773032101339,3.23955133,83.548,83.52,4.40032743]
[1773032101537,3.23955133,83.548,83.521,3.11399515]
[1773032102432,3.23955133,83.548,83.519,11.97321785]
[1773032102838,3.43460359,83.546,83.519,11.97321785]
[1773032104247,3.43460359,83.544,83.511,11.97447042]
[1773032104447,3.43460359,83.544,83.512,3.14559084]
[1773032105252,3.43460359,83.544,83.521,3.14559084]
[1773032106759,3.43460359,83.544,83.522,11.97289336]
[1773032107643,3.43460359,83.544,83.523,3.168356]
[1773032108144,3.43460359,83.544,83.522,11.97289336]
[1773032108350,3.43460359,83.543,83.518,3.168356]
[1773032108656,3.43460359,83.543,83.512,3.18312841]
[1773032110962,3.43748096,83.541,83.514,3.19756462]
[1773032111347,3.43748096,83.519,83.48,0.2]
[1773032111555,3.43748096,83.509,83.48,0.2]
[1773032112238,3.43748096,83.519,83.491,3.33360818]
[1773032113048,3.43748096,83.519,83.492,11.97719541]
[1773032113264,3.43748096,83.519,83.493,3.33360818]
[1773032113770,3.43748096,83.528,83.493,3.33360818]
[1773032114752,3.43748096,83.519,83.493,3.33360818]
[1773032115157,3.43748096,83.519,83.494,11.97690852]
[1773032115340,3.43748096,83.519,83.495,3.33360818]
[1773032116366,3.43748096,83.519,83.497,3.33360818]
[1773032116550,3.43748096,83.527,83.501,3.33360818]
[1773032116952,3.43748096,83.538,83.511,3.33360818]
[1773032117566,3.43748096,83.549,83.511,3.33360818]
[1773032117870,3.43748096,83.549,83.521,3.33360818]
[1773032118176,3.43748096,83.552,83.521,3.33360818]
[1773032118376,3.43748096,83.559,83.523,3.33360818]
[1773032118579,3.43748096,83.559,83.531,3.33360818]
[1773032118780,3.43748096,83.556,83.523,3.33360818]
[1773032119661,3.43748096,83.556,83.489,3.33360818]
[1773032119846,47.0480675,83.557,83.48,0.2]
[1773032119847,3.43748096,83.539,83.501,3.33360818]
[1773032120370,3.43748096,83.529,83.491,3.33360818]
[1773032121259,11.97203333,83.528,83.492,11.97719541]
[1773032121458,3.43748096,83.527,83.492,15.31080359]
[1773032121955,3.43748096,83.519,83.492,11.97719541]
[1773032122150,1.1970027,83.527,83.48,0.2]
[1773032122151,3.43748096,83.509,83.48,0.2]
[1773032122667,3.43748096,83.509,83.481,11.97877361]
[1773032123450,3.43748096,83.507,83.481,11.97877361]
[1773032123975,3.43748096,83.507,83.48,0.2]
[1773032124484,3.43748096,83.514,83.482,3.33360818]
[1773032125068,3.43748096,83.509,83.482,3.33360818]
[1773032126278,3.43748096,83.508,83.483,11.97848663]
[1773032126473,3.43748096,83.508,83.48,0.2]
[1773032126660,3.43748096,83.508,83.48,12.17879539]
[1773032127588,3.43748096,83.508,83.481,3.33360818]
[1773032129175,3.43748096,83.506,83.481,3.33360818]
[1773032130371,3.43748096,83.506,83.482,11.97863012]
[1773032130573,3.43748096,83.509,83.483,3.33360818]
[1773032131070,3.43748096,83.508,83.482,11.97863012]
[1773032132180,3.43748096,83.508,83.484,15.31195133]
[1773032133480,3.43748096,83.508,83.484,11.97834315]
[1773032133863,3.38448182,83.506,83.484,11.97834315]
[1773032136492,3.38448182,83.506,83.48,0.2]
[1773032136493,3.38448182,83.489,83.442,3.41949083]
[1773032136668,3.38448182,83.469,83.449,11.98335276]
[1773032137082,3.38448182,83.469,83.444,11.98398632]
[1773032137383,3.38448182,83.469,83.437,11.98509054]
[1773032138488,3.38448182,83.467,83.437,11.98509054]
[1773032138784,3.38448182,83.467,83.425,29.96672873]
[1773032138785,3.38448182,83.459,83.426,11.98667082]
[1773032139163,3.38448182,83.449,83.427,3.41949083]
[1773032140376,3.38448182,83.459,83.427,3.41949083]
[1773032141066,3.38448182,83.458,83.428,11.98638346]
[1773032141269,29.95159821,83.468,83.428,11.98638346]
[1773032141270,3.38448182,83.479,83.441,3.41949083]
[1773032142080,3.38448182,83.489,83.451,3.41949083]
[1773032142274,3.38448182,83.489,83.461,3.41949083]
[1773032142671,3.38448182,83.489,83.451,3.41949083]
[1773032142976,3.38448182,83.487,83.453,3.41949083]
[1773032145498,5.60328992,83.49,83.423,3.41949083]
[1773032145499,3.38448182,83.485,83.423,3.41949083]
[1773032145798,3.38448182,83.485,83.4,0.1]
[1773032145799,3.38448182,83.429,83.39,0.1]
[1773032146090,4.40628722,83.44,83.359,3.41949083]
[1773032146091,3.38448182,83.397,83.359,3.41949083]
[1773032146284,3.38448182,83.384,83.35,3.51949083]
[1773032146488,4.40628722,83.38,83.353,11.99704009]
[1773032146676,3.38448182,83.379,83.35,0.1]
[1773032146884,0.28432314,83.395,83.35,0.1]
[1773032146885,3.38448182,83.369,83.35,0.1]
[1773032147688,3.38448182,83.369,83.333,12.000048]
[1773032147689,3.38448182,83.359,83.332,8.70395421]
[1773032147988,4.40628722,83.34,83.332,0.34503514]
[1773032148186,3.38448182,83.349,83.332,0.34503514]
[1773032148374,1.7454239,83.367,83.333,15.41953883]
[1773032148577,4.40628722,83.36,83.333,15.41953883]
[1773032149596,11.85010897,83.36,83.333,15.41953883]
[1773032150675,1.76571819,83.375,83.341,3.41949083]
[1773032150984,11.9934276,83.379,83.341,3.41949083]
[1773032151186,13.75914579,83.379,83.341,3.41949083]
[1773032151380,1.77569141,83.359,83.332,0.34503514]
[1773032151676,1.77569141,83.357,83.332,0.34503514]
[1773032152185,1.77569141,83.349,83.332,0.34503514]
[1773032153085,1.24051475,83.339,83.305,3.41949083]
[1773032153283,41.98757167,83.358,83.305,3.41949083]
[1773032153284,1.25064123,83.346,83.311,3.41949083]
[1773032153684,1.25064123,83.346,83.312,12.00307278]
[1773032153990,1.25064123,83.346,83.313,3.41949083]
[1773032154888,1.26073338,83.344,83.313,3.41949083]
[1773032155397,1.26073338,83.344,83.288,0.42648471]
[1773032155398,11.85010897,83.32,83.286,3.41949083]
[1773032155584,0.14216157,83.338,83.253,72.06947497]
[1773032155585,1.87018717,83.337,83.3,11.85010897]
[1773032155896,1.87018717,83.337,83.301,12.0046578]
[1773032156197,11.85010897,83.33,83.301,12.0046578]
[1773032156784,1.87018717,83.337,83.301,12.0046578]
[1773032157486,11.85010897,83.34,83.302,3.41949083]
[1773032157694,11.85010897,83.34,83.311,3.41949083]
[1773032157988,11.85010897,83.34,83.313,3.41949083]
[1773032158486,1.90066278,83.338,83.301,3.41949083]
[1773032159285,1.91053965,83.329,83.294,12.0056313]
[1773032159593,1.91053965,83.319,83.294,12.0056313]
[1773032160189,11.85010897,83.31,83.278,3.41949083]
[1773032160385,0.42648471,83.318,83.277,12.00811748]
[1773032160386,1.92036869,83.317,83.281,3.41949083]
[1773032160784,11.85010897,83.32,83.291,3.41949083]
[1773032161098,1.92036869,83.319,83.291,3.41949083]
[1773032161405,0.14216157,83.336,83.277,42.02841119]
[1773032161406,1.9300742,83.348,83.311,3.41949083]
[1773032161587,1.9300742,83.346,83.318,3.41949083]
[1773032161787,11.85010897,83.33,83.308,3.41949083]
[1773032162098,1.9300742,83.328,83.3,3.41949083]
[1773032162398,1.93972533,83.319,83.291,12.00609909]
[1773032163195,1.93972533,83.319,83.29,11.85010897]
[1773032163196,1.94918702,83.309,83.284,12.00707881]
[1773032163705,1.95859233,83.299,83.277,12.00807628]
[1773032164289,1.96782139,83.299,83.271,12.00898271]
[1773032164494,1.96782139,83.279,83.25,15.43017056]
[1773032165094,1.96782139,83.279,83.25,12.01201201]
[1773032165298,0.42648471,83.298,83.261,3.41815855]
[1773032165496,0.42648471,83.298,83.27,11.85010897]
[1773032165687,2.40348021,83.298,83.261,3.41815855]
[1773032166210,11.85010897,83.29,83.261,3.41815855]
[1773032166389,12.43161232,83.298,83.262,12.0102808]
[1773032166598,12.43161232,83.298,83.263,3.41815855]
[1773032166790,1.98606315,83.297,83.263,3.41815855]
[1773032167210,1.98606315,83.297,83.262,12.0102808]
[1773032167211,11.85010897,83.3,83.271,3.41815855]
[1773032167913,1.99502783,83.279,83.215,60.08467501]
[1773032168212,11.85010897,83.29,83.261,3.41815855]
[1773032168589,0.42648471,83.288,83.257,12.01094441]
[1773032168784,11.85010897,83.28,83.252,15.72130899]
[1773032169006,2.43912941,83.288,83.252,15.72130899]
[1773032169203,2.43912941,83.288,83.253,3.70964486]
[1773032169707,11.85010897,83.28,83.253,3.70964486]
[1773032170711,11.85010897,83.28,83.254,12.01143488]
[1773032170919,11.85010897,83.28,83.255,3.70964486]
[1773032171600,2.43912941,83.288,83.255,3.70964486]